fUSD/lending_fUSD_20260621
["ID","MTS","AMOUNT","RATE_DAILY","PERIOD"]
[425870109,1782012665000,-500.0,0.00030136,2]
[425870110,1782012665000,-40687.380737,0.00030136,2]
[425870107,1782012665000,-500.0,0.00030136,2]
[425870111,1782012665000,-521.92827234,0.00030136,2]
[425870113,1782012665000,-532.94558662,0.00030136,2]
[425870101,1782012665000,-426.74110524,0.00030136,2]
[425870112,1782012665000,-500.0,0.00030136,2]
[425870119,1782012665000,-500.0,0.00030136,2]
[425870117,1782012665000,-500.0,0.00030136,2]
[425870115,1782012665000,-500.0,0.00030136,2]
[425870116,1782012665000,-500.0,0.00030136,2]
[425870118,1782012665000,-5357.3,0.00030136,2]
[425870120,1782012665000,-500.0,0.00030136,2]
[425870080,1782012665000,-612.22,0.00030136,2]
[425870121,1782012665000,-500.0,0.00030136,2]
[425870114,1782012665000,-500.0,0.00030136,2]
[425870100,1782012665000,-500.0,0.00030136,2]
[425870108,1782012665000,-500.0,0.00030136,2]
[425870102,1782012665000,-500.0,0.00030136,2]
[425870085,1782012665000,-500.0,0.00030136,2]
[425870103,1782012665000,-500.0,0.00030136,2]
[425870081,1782012665000,-902.92,0.00030136,2]
[425870082,1782012665000,-500.0,0.00030136,2]
[425870086,1782012665000,-500.0,0.00030136,2]
[425870088,1782012665000,-619.0,0.00030136,2]
[425870087,1782012665000,-500.0,0.00030136,2]
[425870093,1782012665000,-396.38899399,0.00030136,2]
[425870092,1782012665000,-500.0,0.00030136,2]
[425870083,1782012665000,-500.0,0.00030136,2]
[425870089,1782012665000,-500.0,0.00030136,2]
[425870090,1782012665000,-500.0,0.00030136,2]
[425870097,1782012665000,-817.18,0.00030136,2]
[425870099,1782012665000,-612.31,0.00030136,2]
[425870095,1782012665000,-500.0,0.00030136,2]
[425870098,1782012665000,-500.0,0.00030136,2]
[425870096,1782012665000,-500.0,0.00030136,2]
[425870094,1782012665000,-500.0,0.00030136,2]
[425870091,1782012665000,-184.61297053,0.00030136,2]
[425870144,1782012666000,-507.94656041,0.00030136,2]
[425870146,1782012666000,-228.18499839,0.00030136,2]
[425870145,1782012666000,-960.47,0.00030136,2]
[425870149,1782012666000,-548.12851534,0.00030136,2]
[425870147,1782012666000,-500.0,0.00030136,2]
[425870148,1782012666000,-500.0,0.00030136,2]
[425870150,1782012666000,-1276.27,0.00030136,2]
[425870161,1782012666000,-500.0,0.00030136,2]
[425870151,1782012666000,-500.0,0.00030136,2]
[425870152,1782012666000,-533.50882742,0.00030136,2]
[425870158,1782012666000,-500.0,0.00030136,2]
[425870155,1782012666000,-486.50312307,0.00030136,2]
[425870142,1782012666000,-500.0,0.00030136,2]
[425870154,1782012666000,-500.0,0.00030136,2]
[425870153,1782012666000,-500.0,0.00030136,2]
[425870156,1782012666000,-603.17677877,0.00030136,2]
[425870160,1782012666000,-500.0,0.00030136,2]
[425870157,1782012666000,-730.6,0.00030136,2]
[425870159,1782012666000,-500.0,0.00030136,2]
[425870143,1782012666000,-500.0,0.00030136,2]
[425870122,1782012666000,-500.0,0.00030136,2]
[425870141,1782012666000,-824.01,0.00030136,2]
[425870162,1782012666000,-557.95,0.00030136,2]
[425870125,1782012666000,-508.0,0.00030136,2]
[425870124,1782012666000,-500.0,0.00030136,2]
[425870126,1782012666000,-500.0,0.00030136,2]
[425870127,1782012666000,-500.0,0.00030136,2]
[425870128,1782012666000,-500.0,0.00030136,2]
[425870123,1782012666000,-1056.49,0.00030136,2]
[425870129,1782012666000,-500.0,0.00030136,2]
[425870139,1782012666000,-500.0,0.00030136,2]
[425870130,1782012666000,-500.0,0.00030136,2]
[425870133,1782012666000,-500.0,0.00030136,2]
[425870131,1782012666000,-500.0,0.00030136,2]
[425870135,1782012666000,-577.8763875,0.00030136,2]
[425870136,1782012666000,-500.0,0.00030136,2]
[425870137,1782012666000,-503.92,0.00030136,2]
[425870134,1782012666000,-500.0,0.00030136,2]
[425870138,1782012666000,-500.0,0.00030136,2]
[425870140,1782012666000,-513.04212272,0.00030136,2]
[425870132,1782012666000,-500.0,0.00030136,2]
[425870164,1782012666000,-500.0,0.00030136,2]
[425870198,1782012666000,-500.0,0.00030136,2]
[425870171,1782012666000,-500.0,0.00030136,2]
[425870190,1782012666000,-500.0,0.00030136,2]
[425870192,1782012666000,-500.0,0.00030136,2]
[425870191,1782012666000,-500.0,0.00030136,2]
[425870188,1782012666000,-530.08,0.00030136,2]
[425870184,1782012666000,-500.0,0.00030136,2]
[425870201,1782012666000,-500.0,0.00030136,2]
[425870199,1782012666000,-500.0,0.00030136,2]
[425870196,1782012666000,-500.0,0.00030136,2]
[425870189,1782012666000,-610.63,0.00030136,2]
[425870194,1782012666000,-500.0,0.00030136,2]
[425870205,1782012666000,-500.0,0.00030136,2]
[425870195,1782012666000,-500.0,0.00030136,2]
[425870203,1782012666000,-500.0,0.00030136,2]
[425870200,1782012666000,-500.0,0.00030136,2]
[425870202,1782012666000,-505.23,0.00030136,2]
[425870207,1782012666000,-500.0,0.00030136,2]
[425870206,1782012666000,-500.0,0.00030136,2]
[425870172,1782012666000,-500.0,0.00030136,2]
[425870197,1782012666000,-228.81,0.00030136,2]
[425870187,1782012666000,-500.0,0.00030136,2]
[425870204,1782012666000,-500.0,0.00030136,2]
[425870186,1782012666000,-500.0,0.00030136,2]
[425870166,1782012666000,-500.0,0.00030136,2]
[425870193,1782012666000,-2258.91,0.00030136,2]
[425870169,1782012666000,-500.0,0.00030136,2]
[425870165,1782012666000,-500.0,0.00030136,2]
[425870170,1782012666000,-500.0,0.00030136,2]
[425870167,1782012666000,-3871.46,0.00030136,2]
[425870173,1782012666000,-1522.91,0.00030136,2]
[425870163,1782012666000,-500.0,0.00030136,2]
[425870175,1782012666000,-603.12087857,0.00030136,2]
[425870168,1782012666000,-500.0,0.00030136,2]
[425870176,1782012666000,-500.0,0.00030136,2]
[425870178,1782012666000,-500.0,0.00030136,2]
[425870177,1782012666000,-500.0,0.00030136,2]
[425870182,1782012666000,-500.0,0.00030136,2]
[425870179,1782012666000,-500.0,0.00030136,2]
[425870180,1782012666000,-702.36,0.00030136,2]
[425870181,1782012666000,-500.0,0.00030136,2]
[425870185,1782012666000,-352.91613915,0.00030136,2]
[425870174,1782012666000,-500.0,0.00030136,2]
[425870183,1782012666000,-251.90843351,0.00030136,2]
[425870245,1782012667000,-500.0,0.00030136,2]
[425870253,1782012667000,-500.0,0.00030136,2]
[425870249,1782012667000,-500.0,0.00030136,2]
[425870248,1782012667000,-500.0,0.00030136,2]
[425870254,1782012667000,-5214.95,0.00030136,2]
[425870246,1782012667000,-500.0,0.00030136,2]
[425870247,1782012667000,-500.0,0.00030136,2]
[425870252,1782012667000,-500.0,0.00030136,2]
[425870244,1782012667000,-500.0,0.00030136,2]
[425870243,1782012667000,-583.69,0.00030136,2]
[425870250,1782012667000,-500.0,0.00030136,2]
[425870240,1782012667000,-863.82,0.00030136,2]
[425870251,1782012667000,-500.0,0.00030136,2]
[425870242,1782012667000,-500.0,0.00030136,2]
[425870264,1782012667000,-500.0,0.00030136,2]
[425870257,1782012667000,-2272.38,0.00030136,2]
[425870258,1782012667000,-1173.97,0.00030136,2]
[425870259,1782012667000,-500.0,0.00030136,2]
[425870266,1782012667000,-1588.97,0.00030136,2]
[425870256,1782012667000,-500.0,0.00030136,2]
[425870267,1782012667000,-585.1,0.00030136,2]
[425870263,1782012667000,-530.07,0.00030136,2]
[425870262,1782012667000,-500.0,0.00030136,2]
[425870260,1782012667000,-534.00303257,0.00030136,2]
[425870261,1782012667000,-631.14,0.00030136,2]
[425870265,1782012667000,-500.0,0.00030136,2]
[425870268,1782012667000,-500.0,0.00030136,2]
[425870239,1782012667000,-1184.42,0.00030136,2]
[425870255,1782012667000,-6656.18,0.00030136,2]
[425870232,1782012667000,-432.58,0.00030136,2]
[425870216,1782012667000,-633.65,0.00030136,2]
[425870237,1782012667000,-500.0,0.00030136,2]
[425870277,1782012667000,-500.0,0.00030136,2]
[425870208,1782012667000,-500.0,0.00030136,2]
[425870211,1782012667000,-514.32169163,0.00030136,2]
[425870213,1782012667000,-500.0,0.00030136,2]
[425870214,1782012667000,-532.12523778,0.00030136,2]
[425870217,1782012667000,-500.0,0.00030136,2]
[425870209,1782012667000,-500.0,0.00030136,2]
[425870210,1782012667000,-584.39390235,0.00030136,2]
[425870212,1782012667000,-576.86435563,0.00030136,2]
[425870215,1782012667000,-500.0,0.00030136,2]
[425870225,1782012667000,-500.0,0.00030136,2]
[425870227,1782012667000,-551.76,0.00030136,2]
[425870224,1782012667000,-500.0,0.00030136,2]
[425870218,1782012667000,-500.0,0.00030136,2]
[425870228,1782012667000,-219.610538,0.00030136,7]
[425870229,1782012667000,-219.610538,0.00030136,7]
[425870223,1782012667000,-219.610538,0.00030136,7]
[425870221,1782012667000,-500.0,0.00030136,2]
[425870219,1782012667000,-536.52710487,0.00030136,2]
[425870220,1782012667000,-736.55,0.00030136,2]
[425870226,1782012667000,-219.610538,0.00030136,7]
[425870222,1782012667000,-500.0,0.00030136,2]
[425870231,1782012667000,-500.0,0.00030136,2]
[425870233,1782012667000,-742.68,0.00030136,2]
[425870236,1782012667000,-561.97,0.00030136,2]
[425870235,1782012667000,-500.0,0.00030136,2]
[425870241,1782012667000,-500.0,0.00030136,2]
[425870238,1782012667000,-500.0,0.00030136,2]
[425870230,1782012667000,-500.0,0.00030136,2]
[425870234,1782012667000,-500.0,0.00030136,2]
[425870270,1782012667000,-500.0,0.00030136,2]
[425870333,1782012667000,-535.05,0.00030136,2]
[425870271,1782012667000,-500.0,0.00030136,2]
[425870303,1782012667000,-500.0,0.00030136,2]
[425870302,1782012667000,-500.0,0.00030136,2]
[425870309,1782012667000,-342.99517969,0.00030136,2]
[425870320,1782012667000,-567.17,0.00030136,2]
[425870308,1782012667000,-896.77,0.00030136,2]
[425870310,1782012667000,-3786.61,0.00030136,2]
[425870311,1782012667000,-500.0,0.00030136,2]
[425870319,1782012667000,-736.73,0.00030136,2]
[425870321,1782012667000,-515.08,0.00030136,2]
[425870312,1782012667000,-500.0,0.00030136,2]
[425870313,1782012667000,-500.0,0.00030136,2]
[425870316,1782012667000,-500.0,0.00030136,2]
[425870314,1782012667000,-985.28,0.00030136,2]
[425870306,1782012667000,-4954.61,0.00030136,2]
[425870317,1782012667000,-500.0,0.00030136,2]
[425870318,1782012667000,-500.0,0.00030136,2]
[425870322,1782012667000,-500.0,0.00030136,2]
[425870325,1782012667000,-500.0,0.00030136,2]
[425870328,1782012667000,-500.0,0.00030136,2]
[425870324,1782012667000,-500.0,0.00030136,2]
[425870329,1782012667000,-500.0,0.00030136,2]
[425870327,1782012667000,-500.0,0.00030136,2]
[425870326,1782012667000,-500.0,0.00030136,2]
[425870323,1782012667000,-695.42,0.00030136,2]
[425870332,1782012667000,-1244.33,0.00030136,2]
[425870330,1782012667000,-3175.38,0.00030136,2]
[425870331,1782012667000,-500.0,0.00030136,2]
[425870272,1782012667000,-582.64,0.00030136,2]
[425870315,1782012667000,-437.92370188,0.00030136,2]
[425870307,1782012667000,-541.97361361,0.00030136,2]
[425870334,1782012667000,-653.04,0.00030136,2]
[425870305,1782012667000,-772.27,0.00030136,2]
[425870273,1782012667000,-567.84,0.00030136,2]
[425870274,1782012667000,-500.0,0.00030136,2]
[425870279,1782012667000,-226.47610506,0.00030136,2]
[425870276,1782012667000,-500.0,0.00030136,2]
[425870275,1782012667000,-500.0,0.00030136,2]
[425870278,1782012667000,-500.0,0.00030136,2]
[425870269,1782012667000,-552.8822841,0.00030136,2]
[425870280,1782012667000,-500.0,0.00030136,2]
[425870300,1782012667000,-500.0,0.00030136,2]
[425870293,1782012667000,-204.04145397,0.00030136,2]
[425870285,1782012667000,-637.71,0.00030136,2]
[425870283,1782012667000,-500.0,0.00030136,2]
[425870281,1782012667000,-500.0,0.00030136,2]
[425870292,1782012667000,-566.74,0.00030136,2]
[425870282,1782012667000,-542.74,0.00030136,2]
[425870289,1782012667000,-573.86,0.00030136,2]
[425870299,1782012667000,-500.0,0.00030136,2]
[425870284,1782012667000,-500.0,0.00030136,2]
[425870301,1782012667000,-886.26,0.00030136,2]
[425870295,1782012667000,-500.0,0.00030136,2]
[425870304,1782012667000,-712.22,0.00030136,2]
[425870296,1782012667000,-500.0,0.00030136,2]
[425870297,1782012667000,-500.0,0.00030136,2]
[425870294,1782012667000,-835.92,0.00030136,2]
[425870288,1782012667000,-500.0,0.00030136,2]
[425870286,1782012667000,-500.0,0.00030136,2]
[425870290,1782012667000,-500.0,0.00030136,2]
[425870291,1782012667000,-500.0,0.00030136,2]
[425870287,1782012667000,-4964.73,0.00030136,2]
[425870298,1782012667000,-500.0,0.00030136,2]
[425870373,1782012668000,-500.0,0.00030136,2]
[425870383,1782012668000,-500.0,0.00030136,2]
[425870374,1782012668000,-500.0,0.00030136,2]
[425870382,1782012668000,-500.0,0.00030136,2]
[425870377,1782012668000,-852.64,0.00030136,2]
[425870369,1782012668000,-512.99432464,0.00030136,2]
[425870372,1782012668000,-175.6103583,0.00030136,2]
[425870367,1782012668000,-768.17,0.00030136,2]
[425870364,1782012668000,-500.0,0.00030136,2]
[425870365,1782012668000,-300.0,0.00030136,2]
[425870366,1782012668000,-300.0,0.00030136,2]
[425870375,1782012668000,-500.0,0.00030136,2]
[425870376,1782012668000,-608.87,0.00030136,2]
[425870392,1782012668000,-6854.81,0.00030136,2]
[425870380,1782012668000,-500.0,0.00030136,2]
[425870381,1782012668000,-500.0,0.00030136,2]
[425870379,1782012668000,-359.91507559,0.00030136,2]
[425870378,1782012668000,-663.69,0.00030136,2]
[425870385,1782012668000,-500.0,0.00030136,2]
[425870387,1782012668000,-624.26,0.00030136,2]
[425870398,1782012668000,-500.0,0.00030136,2]
[425870397,1782012668000,-500.0,0.00030136,2]
[425870386,1782012668000,-500.0,0.00030136,2]
[425870390,1782012668000,-769.83,0.00030136,2]
[425870393,1782012668000,-500.0,0.00030136,2]
[425870396,1782012668000,-500.0,0.00030136,2]
[425870368,1782012668000,-500.0,0.00030136,2]
[425870384,1782012668000,-741.12,0.00030136,2]
[425870370,1782012668000,-500.0,0.00030136,2]
[425870351,1782012668000,-500.0,0.00030136,2]
[425870362,1782012668000,-726.74,0.00030136,2]
[425870388,1782012668000,-500.0,0.00030136,2]
[425870346,1782012668000,-861.91,0.00030136,2]
[425870337,1782012668000,-500.0,0.00030136,2]
[425870347,1782012668000,-500.0,0.00030136,2]
[425870335,1782012668000,-500.0,0.00030136,2]
[425870338,1782012668000,-1157.36,0.00030136,2]
[425870342,1782012668000,-1000.0,0.00030136,2]
[425870339,1782012668000,-1255.28,0.00030136,2]
[425870340,1782012668000,-652.47,0.00030136,2]
[425870345,1782012668000,-875.04,0.00030136,2]
[425870343,1782012668000,-576.1,0.00030136,2]
[425870344,1782012668000,-5471.52,0.00030136,2]
[425870341,1782012668000,-500.0,0.00030136,2]
[425870348,1782012668000,-500.0,0.00030136,2]
[425870356,1782012668000,-1487.34,0.00030136,2]
[425870357,1782012668000,-401.08733682,0.00030136,2]
[425870350,1782012668000,-500.0,0.00030136,2]
[425870359,1782012668000,-487.405477,0.00030136,2]
[425870349,1782012668000,-521.26,0.00030136,2]
[425870352,1782012668000,-500.0,0.00030136,2]
[425870353,1782012668000,-500.0,0.00030136,2]
[425870354,1782012668000,-500.0,0.00030136,2]
[425870355,1782012668000,-500.0,0.00030136,2]
[425870358,1782012668000,-833.31,0.00030136,2]
[425870361,1782012668000,-500.0,0.00030136,2]
[425870371,1782012668000,-568.0,0.00030136,2]
[425870360,1782012668000,-500.0,0.00030136,2]
[425870363,1782012668000,-500.0,0.00030136,2]
[425870394,1782012668000,-500.0,0.00030136,2]
[425870336,1782012668000,-500.0,0.00030136,2]
[425870389,1782012668000,-500.0,0.00030136,2]
[425870426,1782012668000,-500.0,0.00030136,2]
[425870433,1782012668000,-500.0,0.00030136,2]
[425870430,1782012668000,-1088.56,0.00030136,2]
[425870431,1782012668000,-500.0,0.00030136,2]
[425870444,1782012668000,-500.0,0.00030136,2]
[425870439,1782012668000,-500.0,0.00030136,2]
[425870436,1782012668000,-500.0,0.00030136,2]
[425870434,1782012668000,-500.0,0.00030136,2]
[425870435,1782012668000,-500.0,0.00030136,2]
[425870445,1782012668000,-1065.67,0.00030136,2]
[425870438,1782012668000,-935.58,0.00030136,2]
[425870437,1782012668000,-500.0,0.00030136,2]
[425870442,1782012668000,-7269.77,0.00030136,2]
[425870429,1782012668000,-932.54,0.00030136,2]
[425870441,1782012668000,-500.0,0.00030136,2]
[425870443,1782012668000,-500.0,0.00030136,2]
[425870447,1782012668000,-500.0,0.00030136,2]
[425870455,1782012668000,-167.0234,0.00030136,4]
[425870448,1782012668000,-500.0,0.00030136,2]
[425870449,1782012668000,-582.33319464,0.00030136,2]
[425870451,1782012668000,-500.0,0.00030136,2]
[425870456,1782012668000,-2732.06,0.00030136,2]
[425870446,1782012668000,-500.0,0.00030136,2]
[425870453,1782012668000,-2019.42,0.00030136,2]
[425870454,1782012668000,-500.0,0.00030136,2]
[425870452,1782012668000,-500.0,0.00030136,2]
[425870450,1782012668000,-1056.74,0.00030136,2]
[425870457,1782012668000,-500.0,0.00030136,2]
[425870440,1782012668000,-500.0,0.00030136,2]
[425870427,1782012668000,-500.0,0.00030136,2]
[425870395,1782012668000,-7914.34,0.00030136,2]
[425870428,1782012668000,-523.29,0.00030136,2]
[425870425,1782012668000,-500.0,0.00030136,2]
[425870391,1782012668000,-500.0,0.00030136,2]
[425870399,1782012668000,-500.0,0.00030136,2]
[425870405,1782012668000,-625.08,0.00030136,2]
[425870408,1782012668000,-500.0,0.00030136,2]
[425870407,1782012668000,-617.88,0.00030136,2]
[425870404,1782012668000,-500.0,0.00030136,2]
[425870401,1782012668000,-500.0,0.00030136,2]
[425870409,1782012668000,-500.0,0.00030136,2]
[425870410,1782012668000,-666.42,0.00030136,2]
[425870406,1782012668000,-638.77,0.00030136,2]
[425870402,1782012668000,-814.25,0.00030136,2]
[425870400,1782012668000,-1139.01,0.00030136,2]
[425870422,1782012668000,-626.55,0.00030136,2]
[425870403,1782012668000,-500.0,0.00030136,2]
[425870421,1782012668000,-811.07,0.00030136,2]
[425870411,1782012668000,-16323.99,0.00030136,2]
[425870424,1782012668000,-500.0,0.00030136,2]
[425870423,1782012668000,-647.05102265,0.00030136,2]
[425870419,1782012668000,-500.0,0.00030136,2]
[425870418,1782012668000,-500.0,0.00030136,2]
[425870415,1782012668000,-500.0,0.00030136,2]
[425870416,1782012668000,-500.0,0.00030136,2]
[425870432,1782012668000,-34471.253124,0.00030136,2]
[425870417,1782012668000,-3923.16,0.00030136,2]
[425870414,1782012668000,-758.84,0.00030136,2]
[425870420,1782012668000,-1713.94,0.00030136,2]
[425870412,1782012668000,-500.0,0.00030136,2]
[425870413,1782012668000,-500.0,0.00030136,2]
[425870491,1782012669000,-151.0,0.00030239,2]
[425870509,1782012669000,-396.27,0.00030335,2]
[425870504,1782012669000,-1283.54,0.000303,7]
[425870507,1782012669000,-526.30007439,0.00030322,2]
[425870492,1782012669000,-25000.0,0.0003025,2]
[425870494,1782012669000,-25000.0,0.0003025,2]
[425870497,1782012669000,-2500.0,0.0003025,2]
[425870498,1782012669000,-253.67494038,0.00030253,4]
[425870496,1782012669000,-306.89,0.0003025,2]
[425870486,1782012669000,-371.56727407,0.00030137,2]
[425870510,1782012669000,-167.0234,0.00030336,4]
[425870488,1782012669000,-169.75665872,0.00030137,120]
[425870502,1782012669000,-263.08,0.00030293,15]
[425870516,1782012669000,-258.01854664,0.0003036,2]
[425870503,1782012669000,-1689.3,0.000303,7]
[425870505,1782012669000,-1921.9672848,0.0003031,2]
[425870500,1782012669000,-292.75,0.00030274,7]
[425870506,1782012669000,-501.0270542,0.0003031,2]
[425870508,1782012669000,-500.35893196,0.00030333,2]
[425870501,1782012669000,-390.6,0.00030274,7]
[425870511,1782012669000,-644.26,0.00030352,2]
[425870512,1782012669000,-185.19,0.00030354,2]
[425870523,1782012669000,-591.76084103,0.0003041,2]
[425870513,1782012669000,-482.4,0.00030354,2]
[425870514,1782012669000,-571.65,0.00030354,2]
[425870515,1782012669000,-482.4,0.00030354,2]
[425870495,1782012669000,-2500.0,0.0003025,2]
[425870499,1782012669000,-267.55,0.00030274,7]
[425870490,1782012669000,-150.0,0.00030206,2]
[425870473,1782012669000,-1436.46,0.00030136,2]
[425870493,1782012669000,-25000.0,0.0003025,2]
[425870517,1782012669000,-251.0,0.0003036,2]
[425870460,1782012669000,-932.5,0.00030136,2]
[425870464,1782012669000,-535.27,0.00030136,2]
[425870459,1782012669000,-500.0,0.00030136,2]
[425870471,1782012669000,-787.18,0.00030136,2]
[425870468,1782012669000,-1661.56,0.00030136,2]
[425870470,1782012669000,-1085.35,0.00030136,2]
[425870472,1782012669000,-500.0,0.00030136,2]
[425870461,1782012669000,-1723.96,0.00030136,2]
[425870466,1782012669000,-500.0,0.00030136,2]
[425870463,1782012669000,-500.0,0.00030136,2]
[425870469,1782012669000,-500.0,0.00030136,2]
[425870465,1782012669000,-272.77956183,0.00030136,2]
[425870489,1782012669000,-250.0,0.0003019,7]
[425870467,1782012669000,-500.0,0.00030136,2]
[425870482,1782012669000,-500.0,0.00030136,2]
[425870481,1782012669000,-500.0,0.00030136,2]
[425870480,1782012669000,-575.11,0.00030136,2]
[425870478,1782012669000,-500.0,0.00030136,2]
[425870476,1782012669000,-500.0,0.00030136,2]
[425870474,1782012669000,-616.64290821,0.00030136,2]
[425870475,1782012669000,-500.0,0.00030136,2]
[425870483,1782012669000,-500.0,0.00030136,2]
[425870484,1782012669000,-881.21,0.00030136,2]
[425870477,1782012669000,-2323.18,0.00030136,2]
[425870479,1782012669000,-500.0,0.00030136,2]
[425870485,1782012669000,-500.0,0.00030136,2]
[425870487,1782012669000,-187.23452303,0.00030137,30]
[425870462,1782012669000,-526.9,0.00030136,2]
[425870458,1782012669000,-500.0,0.00030136,2]
[425870521,1782012669000,-585.03,0.0003041,2]
[425870519,1782012669000,-251.0,0.0003036,2]
[425870554,1782012669000,-528.96619696,0.0003041,2]
[425870557,1782012669000,-500.0,0.0003041,2]
[425870558,1782012669000,-500.0,0.0003041,2]
[425870555,1782012669000,-425.36113456,0.0003041,2]
[425870549,1782012669000,-500.0,0.0003041,2]
[425870559,1782012669000,-500.0,0.0003041,2]
[425870561,1782012669000,-500.0,0.0003041,2]
[425870563,1782012669000,-500.0,0.0003041,2]
[425870567,1782012669000,-500.0,0.0003041,2]
[425870569,1782012669000,-500.0,0.0003041,2]
[425870562,1782012669000,-500.0,0.0003041,2]
[425870571,1782012669000,-521.99,0.0003041,2]
[425870564,1782012669000,-831.64,0.0003041,2]
[425870553,1782012669000,-500.0,0.0003041,2]
[425870560,1782012669000,-760.3,0.0003041,2]
[425870566,1782012669000,-500.0,0.0003041,2]
[425870568,1782012669000,-500.0,0.0003041,2]
[425870570,1782012669000,-500.0,0.0003041,2]
[425870572,1782012669000,-618.23,0.0003041,2]
[425870574,1782012669000,-500.0,0.0003041,2]
[425870580,1782012669000,-500.0,0.0003041,2]
[425870575,1782012669000,-500.0,0.0003041,2]
[425870573,1782012669000,-500.0,0.0003041,2]
[425870577,1782012669000,-500.0,0.0003041,2]
[425870576,1782012669000,-500.0,0.0003041,2]
[425870581,1782012669000,-500.0,0.0003041,2]
[425870579,1782012669000,-500.0,0.0003041,2]
[425870518,1782012669000,-251.0,0.0003036,2]
[425870565,1782012669000,-500.0,0.0003041,2]
[425870556,1782012669000,-500.0,0.0003041,2]
[425870578,1782012669000,-500.0,0.0003041,2]
[425870551,1782012669000,-632.58,0.0003041,2]
[425870552,1782012669000,-500.0,0.0003041,2]
[425870520,1782012669000,-526.30007439,0.00030372,2]
[425870524,1782012669000,-500.0,0.0003041,2]
[425870526,1782012669000,-500.0,0.0003041,2]
[425870527,1782012669000,-472.15732194,0.0003041,2]
[425870529,1782012669000,-500.0,0.0003041,2]
[425870530,1782012669000,-719.64,0.0003041,2]
[425870525,1782012669000,-500.0,0.0003041,2]
[425870528,1782012669000,-500.0,0.0003041,2]
[425870531,1782012669000,-575.39667479,0.0003041,2]
[425870534,1782012669000,-1177.15,0.0003041,2]
[425870532,1782012669000,-547.02,0.0003041,2]
[425870533,1782012669000,-182.8685962,0.0003041,2]
[425870535,1782012669000,-500.0,0.0003041,2]
[425870522,1782012669000,-500.0,0.0003041,2]
[425870547,1782012669000,-500.0,0.0003041,2]
[425870550,1782012669000,-500.0,0.0003041,2]
[425870548,1782012669000,-500.0,0.0003041,2]
[425870544,1782012669000,-513.45,0.0003041,2]
[425870546,1782012669000,-500.0,0.0003041,2]
[425870537,1782012669000,-500.0,0.0003041,2]
[425870539,1782012669000,-500.0,0.0003041,2]
[425870543,1782012669000,-500.0,0.0003041,2]
[425870541,1782012669000,-500.0,0.0003041,2]
[425870545,1782012669000,-500.0,0.0003041,2]
[425870540,1782012669000,-589.55,0.0003041,2]
[425870538,1782012669000,-500.0,0.0003041,2]
[425870536,1782012669000,-500.0,0.0003041,2]
[425870542,1782012669000,-151.09437341,0.0003041,2]
[425870625,1782012670000,-500.0,0.0003041,2]
[425870622,1782012670000,-717.56,0.0003041,2]